fUST/lending_fUST_20250723
["ID","MTS","AMOUNT","RATE_DAILY","PERIOD"]
[374302553,1753270245830,-1975.6,0.0002,2]
[374302555,1753270245842,-460.0,0.0002,2]
[374302557,1753270245851,-460.0,0.0002,2]
[374302559,1753270245861,-497.72,0.0002,2]
[374302561,1753270245870,-460.0,0.0002,2]
[374302563,1753270245879,-460.0,0.0002,2]
[374302565,1753270245890,-460.0,0.0002,2]
[374302567,1753270245899,-460.0,0.0002,2]
[374302569,1753270245909,-460.0,0.0002,2]
[374302571,1753270245918,-173.56660763,0.0002,2]
[374302573,1753270245928,-636.41,0.0002,2]
[374302575,1753270245938,-3910.58,0.0002,2]
[374302577,1753270245948,-460.0,0.0002,2]
[374302579,1753270245958,-460.0,0.0002,2]
[374302581,1753270245967,-474.64235238,0.0002,2]
[374302583,1753270245976,-326.96769428,0.0002,2]
[374302585,1753270245985,-460.0,0.0002,2]
[374302587,1753270245995,-761.41,0.0002,2]
[374302589,1753270246005,-593.02,0.0002,2]
[374302591,1753270246015,-460.0,0.0002,2]
[374302593,1753270246024,-870.07,0.0002,2]
[374302595,1753270246034,-460.0,0.0002,2]
[374302597,1753270246044,-2426.86,0.0002,2]
[374302599,1753270246053,-460.0,0.0002,2]
[374302601,1753270246062,-460.0,0.0002,2]
[374302603,1753270246072,-2897.99,0.0002,2]
[374302605,1753270246081,-1862.37,0.0002,2]
[374302607,1753270246090,-3318.78,0.0002,2]
[374302609,1753270246099,-460.0,0.0002,2]
[374302610,1753270246109,-563.99,0.0002,2]
[374302612,1753270246118,-460.0,0.0002,2]
[374302614,1753270246127,-591.43,0.0002,2]
[374302616,1753270246136,-363.23574977,0.0002,2]
[374302618,1753270246145,-460.0,0.0002,2]
[374302620,1753270246155,-460.0,0.0002,2]
[374302622,1753270246165,-460.0,0.0002,2]
[374302624,1753270246173,-13852.46,0.0002,2]
[374302626,1753270246183,-460.0,0.0002,2]
[374302628,1753270246192,-3238.95,0.0002,2]
[374302630,1753270246201,-514.65,0.0002,2]
[374302632,1753270246210,-460.0,0.0002,2]
[374302633,1753270246219,-460.0,0.0002,2]
[374302634,1753270246228,-1738.97,0.0002,2]
[374302635,1753270246237,-460.0,0.0002,2]
[374302636,1753270246246,-597.34,0.0002,2]
[374302637,1753270246255,-200.0,0.0002,2]
[374302638,1753270246266,-460.0,0.0002,2]
[374302639,1753270246275,-460.0,0.0002,2]
[374302640,1753270246285,-460.0,0.0002,2]
[374302642,1753270246294,-1270.47,0.0002,2]
[374302644,1753270246303,-538.77,0.0002,2]
[374302646,1753270246313,-460.0,0.0002,2]
[374302648,1753270246322,-460.0,0.0002,2]
[374302650,1753270246331,-471.72102785,0.0002,2]
[374302652,1753270246341,-1243.64,0.0002,2]
[374302653,1753270246351,-460.0,0.0002,2]
[374302656,1753270246360,-4276.54,0.0002,2]
[374302657,1753270246370,-460.0,0.0002,2]
[374302659,1753270246379,-1592.37,0.0002,2]
[374302661,1753270246388,-460.0,0.0002,2]
[374302663,1753270246397,-460.0,0.0002,2]
[374302665,1753270246406,-2748.55,0.0002,2]
[374302667,1753270246416,-460.0,0.0002,2]
[374302669,1753270246425,-160.0,0.0002,3]
[374302687,1753270246576,-687.2,0.0002,2]
[374302689,1753270246585,-1000.0,0.00020021,2]
[374302691,1753270246595,-1000.0,0.00020021,2]
[374302693,1753270246604,-900.0,0.00020168,2]
[374302694,1753270246614,-1500.0,0.00020168,2]
[374302696,1753270246623,-170.6692493,0.00020173,2]
[374302699,1753270246633,-1000.0,0.00020181,2]
[374302700,1753270246642,-1000.0,0.00020181,2]
[374302702,1753270246652,-615.531042,0.00020187,2]
[374302704,1753270246661,-151.0,0.000202,3]
[374302706,1753270246670,-1017.57490607,0.00020239,2]
[374302708,1753270246679,-1000.0,0.00020239,2]
[374302710,1753270246689,-1000.0,0.00020239,2]
[374302712,1753270246698,-250.42189344,0.00020273,2]
[374302714,1753270246707,-460.0,0.00020273,2]
[374302717,1753270246717,-460.0,0.00020273,2]
[374302718,1753270246727,-460.0,0.00020273,2]
[374302720,1753270246736,-460.0,0.00020273,2]
[374302722,1753270246746,-460.0,0.00020273,2]
[374302724,1753270246755,-460.0,0.00020273,2]
[374302747,1753270246972,-460.0,0.00020273,2]
[374302749,1753270246981,-460.0,0.00020273,2]
[374302751,1753270246991,-460.0,0.00020273,2]
[374302753,1753270247000,-460.0,0.00020273,2]
[374302754,1753270247009,-460.0,0.00020273,2]
[374302757,1753270247019,-460.0,0.00020273,2]
[374302758,1753270247028,-460.0,0.00020273,2]
[374302760,1753270247038,-1238.69,0.00020273,2]
[374302762,1753270247048,-573.91,0.00020273,2]
[374302764,1753270247058,-568.99,0.00020273,2]
[374302766,1753270247068,-460.0,0.00020273,2]
[374302768,1753270247077,-672.03,0.00020273,2]
[374302770,1753270247087,-460.0,0.00020273,2]
[374302772,1753270247096,-182.39,0.00020273,2]
[374302774,1753270247106,-460.0,0.00020273,2]
[374302776,1753270247115,-599.95,0.00020273,2]
[374302778,1753270247125,-649.34,0.00020273,2]
[374302780,1753270247135,-460.0,0.00020273,2]
[374302782,1753270247145,-460.0,0.00020273,2]
[374302784,1753270247155,-556.75,0.00020273,2]
[374302786,1753270247165,-460.0,0.00020273,2]
[374302788,1753270247175,-460.0,0.00020273,2]
[374302790,1753270247184,-460.0,0.00020273,2]
[374302792,1753270247194,-460.0,0.00020273,2]
[374302794,1753270247205,-460.0,0.00020273,2]
[374302796,1753270247214,-460.0,0.00020273,2]
[374302798,1753270247224,-460.0,0.00020273,2]
[374302800,1753270247234,-460.0,0.00020273,2]
[374302802,1753270247243,-460.0,0.00020273,2]
[374302804,1753270247252,-460.0,0.00020273,2]
[374302806,1753270247262,-460.0,0.00020273,2]
[374302808,1753270247271,-718.71,0.00020273,2]
[374302810,1753270247281,-470.47,0.00020273,2]
[374302812,1753270247290,-460.0,0.00020273,2]
[374302814,1753270247301,-460.0,0.00020273,2]
[374302816,1753270247310,-7017.22,0.00020273,2]
[374302818,1753270247320,-566.09,0.00020273,2]
[374302820,1753270247329,-309.08,0.00020273,2]
[374302822,1753270247338,-460.0,0.00020273,2]
[374302824,1753270247347,-837.35,0.00020273,2]
[374302826,1753270247357,-460.0,0.00020273,2]
[374302828,1753270247366,-1975.6,0.00020273,2]
[374302830,1753270247376,-171.37755409,0.00020273,2]
[374302832,1753270247386,-460.0,0.00020273,2]
[374302834,1753270247395,-497.72,0.00020273,2]
[374302836,1753270247405,-460.0,0.00020273,2]
[374302838,1753270247415,-460.0,0.00020273,2]
[374302840,1753270247424,-460.0,0.00020273,2]
[374302842,1753270247433,-460.0,0.00020273,2]
[374302844,1753270247443,-460.0,0.00020273,2]
[374302846,1753270247453,-636.41,0.00020273,2]
[374302848,1753270247463,-3910.58,0.00020273,2]
[374302850,1753270247472,-460.0,0.00020273,2]
[374302852,1753270247482,-460.0,0.00020273,2]
[374302854,1753270247491,-761.41,0.00020273,2]
[374302856,1753270247501,-593.02,0.00020273,2]
[374302858,1753270247510,-460.0,0.00020273,2]
[374302860,1753270247520,-870.07,0.00020273,2]
[374302862,1753270247529,-460.0,0.00020273,2]
[374302864,1753270247538,-2426.86,0.00020273,2]
[374302866,1753270247548,-460.0,0.00020273,2]
[374302868,1753270247557,-460.0,0.00020273,2]
[374302870,1753270247567,-2897.99,0.00020273,2]
[374302872,1753270247577,-1862.37,0.00020273,2]
[374302874,1753270247586,-3318.78,0.00020273,2]
[374302876,1753270247596,-460.0,0.00020273,2]
[374302878,1753270247605,-563.99,0.00020273,2]
[374302880,1753270247615,-460.0,0.00020273,2]
[374302882,1753270247624,-591.43,0.00020273,2]
[374302884,1753270247633,-460.0,0.00020273,2]
[374302886,1753270247643,-359.72951454,0.00020273,2]
[374302888,1753270247652,-13852.46,0.00020273,2]
[374302890,1753270247662,-283.1817611,0.00020273,2]
[374302892,1753270247671,-3238.95,0.00020273,2]
[374302894,1753270247680,-514.65,0.00020273,2]
[374302896,1753270247690,-460.0,0.00020273,2]
[374302898,1753270247699,-1738.97,0.00020273,2]
[374302900,1753270247708,-460.0,0.00020273,2]
[374302902,1753270247718,-597.34,0.00020273,2]
[374302904,1753270247727,-460.0,0.00020273,2]
[374302906,1753270247736,-460.0,0.00020273,2]
[374302908,1753270247745,-460.0,0.00020273,2]
[374302910,1753270247755,-1270.47,0.00020273,2]
[374302912,1753270247764,-538.77,0.00020273,2]
[374302914,1753270247774,-460.0,0.00020273,2]
[374302916,1753270247783,-460.0,0.00020273,2]
[374302918,1753270247793,-460.0,0.00020273,2]
[374302920,1753270247803,-1243.64,0.00020273,2]
[374302922,1753270247812,-4276.54,0.00020273,2]
[374302924,1753270247822,-460.0,0.00020273,2]
[374302925,1753270247831,-1592.37,0.00020273,2]
[374302928,1753270247843,-460.0,0.00020273,2]
[374302929,1753270247853,-2748.55,0.00020273,2]
[374302931,1753270247862,-596.71647768,0.00020273,2]
[374302933,1753270247872,-687.2,0.00020273,2]
[374302935,1753270247881,-158.27900585,0.00020276,2]
[374302937,1753270247892,-500.0,0.00020276,2]
[374302939,1753270247902,-500.0,0.00020276,2]
[374302941,1753270247911,-500.0,0.00020276,2]
[374302943,1753270247923,-500.0,0.00020276,2]
[374302945,1753270247933,-500.0,0.00020276,2]
[374302947,1753270247942,-160.0,0.000203,2]
[374302949,1753270247952,-3395.88933311,0.00020382,2]
[374302951,1753270247961,-571.0935272,0.000204,2]
[374302953,1753270247970,-981.24919533,0.00020402,2]
[374302955,1753270247980,-216.23,0.00020406,2]
[374302957,1753270247990,-1508.22,0.00020438,3]
[374302959,1753270247999,-754.12,0.00020438,3]
[374302961,1753270248010,-377.06,0.00020438,3]
[374302963,1753270248019,-7024.14957748,0.00020539,2]
[374302965,1753270248029,-460.0,0.00020547,2]
[374302967,1753270248039,-460.0,0.00020547,2]
[374302969,1753270248049,-460.0,0.00020547,2]
[374302971,1753270248059,-460.0,0.00020547,2]
[374302973,1753270248069,-460.0,0.00020547,2]
[374302975,1753270248079,-460.0,0.00020547,2]
[374302977,1753270248089,-460.0,0.00020547,2]
[374302979,1753270248099,-460.0,0.00020547,2]
[374302981,1753270248109,-460.0,0.00020547,2]
[374302983,1753270248119,-460.0,0.00020547,2]
[374302985,1753270248129,-460.0,0.00020547,2]
[374302987,1753270248139,-460.0,0.00020547,2]
[374302989,1753270248149,-460.0,0.00020547,2]
[374302991,1753270248159,-1238.69,0.00020547,2]
[374302993,1753270248169,-573.91,0.00020547,2]
[374302994,1753270248178,-460.0,0.00020547,2]
[374302996,1753270248187,-672.03,0.00020547,2]
[374302998,1753270248197,-460.0,0.00020547,2]
[374303000,1753270248207,-599.95,0.00020547,2]
[374303003,1753270248217,-649.34,0.00020547,2]
[374303005,1753270248228,-461.69,0.00020547,2]
[374303007,1753270248238,-460.0,0.00020547,2]
[374303009,1753270248248,-556.75,0.00020547,2]
[374303011,1753270248258,-460.0,0.00020547,2]
[374303013,1753270248267,-460.0,0.00020547,2]
[374303015,1753270248277,-538.53226701,0.00020547,2]
[374303016,1753270248288,-460.0,0.00020547,2]
[374303019,1753270248299,-460.0,0.00020547,2]
[374303021,1753270248309,-460.0,0.00020547,2]
[374303023,1753270248319,-460.0,0.00020547,2]
[374303024,1753270248328,-460.0,0.00020547,2]
[374303027,1753270248338,-460.0,0.00020547,2]
[374303029,1753270248347,-460.0,0.00020547,2]
[374303031,1753270248357,-718.71,0.00020547,2]
[374303032,1753270248366,-470.47,0.00020547,2]
[374303035,1753270248379,-460.0,0.00020547,2]
[374303037,1753270248391,-460.0,0.00020547,2]
[374303039,1753270248401,-566.09,0.00020547,2]
[374303041,1753270248411,-7017.22,0.00020547,2]
[374303043,1753270248420,-460.0,0.00020547,2]
[374303044,1753270248429,-837.35,0.00020547,2]
[374303046,1753270248439,-460.0,0.00020547,2]
[374303048,1753270248449,-1975.6,0.00020547,2]
[374303050,1753270248458,-400.0,0.00020547,2]
[374303052,1753270248468,-497.72,0.00020547,2]
[374303054,1753270248477,-460.0,0.00020547,2]
[374303056,1753270248486,-460.0,0.00020547,2]
[374303058,1753270248496,-460.0,0.00020547,2]
[374303060,1753270248506,-460.0,0.00020547,2]
[374303062,1753270248515,-460.0,0.00020547,2]
[374303064,1753270248525,-636.41,0.00020547,2]
[374303066,1753270248535,-3910.58,0.00020547,2]
[374303068,1753270248545,-460.0,0.00020547,2]
[374303070,1753270248554,-460.0,0.00020547,2]
[374303072,1753270248563,-761.41,0.00020547,2]
[374303074,1753270248572,-593.02,0.00020547,2]
[374303076,1753270248581,-460.0,0.00020547,2]
[374303078,1753270248591,-870.07,0.00020547,2]
[374303080,1753270248600,-2426.86,0.00020547,2]
[374303082,1753270248609,-460.0,0.00020547,2]
[374303084,1753270248621,-460.0,0.00020547,2]
[374303086,1753270248631,-2897.99,0.00020547,2]
[374303088,1753270248640,-1862.37,0.00020547,2]
[374303090,1753270248650,-3318.78,0.00020547,2]
[374303092,1753270248660,-460.0,0.00020547,2]
[374303094,1753270248669,-563.99,0.00020547,2]
[374303096,1753270248678,-460.0,0.00020547,2]
[374303098,1753270248688,-591.43,0.00020547,2]
[374303100,1753270248700,-460.0,0.00020547,2]
[374303102,1753270248709,-13852.46,0.00020547,2]
[374303104,1753270248719,-3238.95,0.00020547,2]
[374303106,1753270248728,-514.65,0.00020547,2]
[374303108,1753270248738,-460.0,0.00020547,2]
[374303110,1753270248748,-1738.97,0.00020547,2]
[374303112,1753270248758,-460.0,0.00020547,2]
[374303114,1753270248767,-597.34,0.00020547,2]
[374303116,1753270248777,-460.0,0.00020547,2]
[374303118,1753270248786,-460.0,0.00020547,2]
[374303119,1753270248798,-460.0,0.00020547,2]
[374303121,1753270248809,-1270.47,0.00020547,2]
[374303123,1753270248819,-538.77,0.00020547,2]
[374303125,1753270248830,-460.0,0.00020547,2]
[374303127,1753270248844,-460.0,0.00020547,2]
[374303129,1753270248855,-460.0,0.00020547,2]
[374303131,1753270248866,-1243.64,0.00020547,2]
[374303133,1753270248875,-460.0,0.00020547,2]
[374303135,1753270248887,-4276.54,0.00020547,2]
[374303137,1753270248897,-1592.37,0.00020547,2]
[374303139,1753270248908,-460.0,0.00020547,2]
[374303141,1753270248920,-2748.55,0.00020547,2]
[374303143,1753270248930,-500.0,0.00020548,2]
[374303145,1753270248940,-500.0,0.00020548,2]
[374303147,1753270248950,-1000.0,0.00020568,2]
[374303149,1753270248960,-1500.0,0.00020568,2]
[374303151,1753270248969,-526.15909479,0.00020698,2]
[374303153,1753270248979,-160.0,0.00020698,2]
[374303155,1753270248988,-160.0,0.00020698,2]
[374303157,1753270248999,-160.0,0.00020698,2]
[374303159,1753270249010,-214.67886746,0.00020698,2]
[374303161,1753270249019,-231.11583447,0.00020698,2]
[374303163,1753270249029,-160.0,0.00020698,2]
[374303165,1753270249039,-840.06856235,0.00020698,2]
[374303166,1753270249050,-160.0,0.00020698,2]
[374303168,1753270249060,-160.0,0.00020698,2]
[374303170,1753270249071,-160.0,0.00020698,2]
[374303172,1753270249081,-215.84326551,0.00020698,2]
[374303174,1753270249091,-476.696448,0.00020698,2]
[374303176,1753270249101,-160.0,0.00020698,2]
[374303178,1753270249111,-12622.36869388,0.00020698,2]
[374303180,1753270249121,-2095.20899026,0.00020716,2]
[374303182,1753270249132,-1500.0,0.00020729,2]
[374303184,1753270249142,-1500.0,0.00020729,2]
[374303186,1753270249152,-3395.88933311,0.00020747,2]
[374303188,1753270249162,-375.78745415,0.00020763,2]
[374303190,1753270249172,-1500.0,0.00020787,2]
[374303192,1753270249182,-1500.0,0.00020787,2]
[374303194,1753270249192,-980.509,0.00020789,2]
[374303196,1753270249202,-178.723,0.00020789,2]
[374303198,1753270249211,-12622.36869388,0.00020811,10]
[374303200,1753270249221,-460.0,0.00020821,2]
[374303202,1753270249230,-460.0,0.00020821,2]
[374303204,1753270249240,-460.0,0.00020821,2]
[374303206,1753270249249,-460.0,0.00020821,2]
[374303208,1753270249259,-460.0,0.00020821,2]
[374303210,1753270249268,-460.0,0.00020821,2]
[374303212,1753270249277,-460.0,0.00020821,2]
[374303214,1753270249287,-460.0,0.00020821,2]
[374303215,1753270249298,-460.0,0.00020821,2]
[374303217,1753270249308,-460.0,0.00020821,2]
[374303219,1753270249317,-460.0,0.00020821,2]
[374303221,1753270249327,-460.0,0.00020821,2]
[374303223,1753270249337,-460.0,0.00020821,2]
[374303225,1753270249346,-1238.69,0.00020821,2]
[374303227,1753270249356,-573.91,0.00020821,2]
[374303229,1753270249365,-460.0,0.00020821,2]
[374303231,1753270249375,-672.03,0.00020821,2]
[374303233,1753270249385,-460.0,0.00020821,2]
[374303235,1753270249394,-599.95,0.00020821,2]
[374303237,1753270249404,-649.34,0.00020821,2]
[374303239,1753270249413,-460.0,0.00020821,2]
[374303241,1753270249423,-556.75,0.00020821,2]
[374303243,1753270249432,-460.0,0.00020821,2]
[374303245,1753270249442,-460.0,0.00020821,2]
[374303247,1753270249451,-460.0,0.00020821,2]
[374303249,1753270249461,-460.0,0.00020821,2]
[374303251,1753270249471,-460.0,0.00020821,2]
[374303253,1753270249481,-460.0,0.00020821,2]
[374303255,1753270249491,-460.0,0.00020821,2]
[374303257,1753270249501,-460.0,0.00020821,2]
[374303272,1753270249643,-460.0,0.00020821,2]
[374303275,1753270249654,-718.71,0.00020821,2]
[374303276,1753270249664,-470.47,0.00020821,2]
[374303278,1753270249673,-460.0,0.00020821,2]
[374303280,1753270249683,-460.0,0.00020821,2]
[374303282,1753270249692,-566.09,0.00020821,2]
[374303284,1753270249702,-7017.22,0.00020821,2]
[374303286,1753270249711,-460.0,0.00020821,2]
[374303288,1753270249721,-837.35,0.00020821,2]
[374303290,1753270249731,-197.24,0.00020821,2]
[374303292,1753270249740,-1975.6,0.00020821,2]
[374303294,1753270249750,-497.72,0.00020821,2]
[374303296,1753270249759,-460.0,0.00020821,2]
[374303298,1753270249769,-460.0,0.00020821,2]
[374303300,1753270249779,-460.0,0.00020821,2]
[374303302,1753270249788,-460.0,0.00020821,2]
[374303304,1753270249800,-460.0,0.00020821,2]
[374303306,1753270249810,-636.41,0.00020821,2]
[374303308,1753270249819,-3910.58,0.00020821,2]
[374303310,1753270249830,-443.46108589,0.00020821,2]
[374303312,1753270249840,-460.0,0.00020821,2]
[374303314,1753270249853,-761.41,0.00020821,2]
[374303316,1753270249863,-593.02,0.00020821,2]
[374303318,1753270249873,-460.0,0.00020821,2]
[374303319,1753270249884,-870.07,0.00020821,2]
[374303321,1753270249893,-2426.86,0.00020821,2]
[374303323,1753270249903,-460.0,0.00020821,2]
[374303325,1753270249913,-460.0,0.00020821,2]
[374303327,1753270249924,-2897.99,0.00020821,2]
[374303329,1753270249934,-1862.37,0.00020821,2]
[374303331,1753270249944,-3318.78,0.00020821,2]
[374303333,1753270249954,-460.0,0.00020821,2]
[374303335,1753270249964,-563.99,0.00020821,2]
[374303337,1753270249974,-460.0,0.00020821,2]
[374303339,1753270249985,-591.43,0.00020821,2]
[374303341,1753270249995,-13852.46,0.00020821,2]
[374303343,1753270250005,-3238.95,0.00020821,2]
[374303345,1753270250016,-514.65,0.00020821,2]
[374303347,1753270250025,-460.0,0.00020821,2]
[374303348,1753270250035,-1738.97,0.00020821,2]
[374303350,1753270250044,-460.0,0.00020821,2]
[374303352,1753270250059,-597.34,0.00020821,2]
[374303354,1753270250069,-460.0,0.00020821,2]
[374303356,1753270250078,-460.0,0.00020821,2]
[374303358,1753270250088,-1270.47,0.00020821,2]
[374303360,1753270250098,-538.77,0.00020821,2]
[374303362,1753270250107,-460.0,0.00020821,2]
[374303364,1753270250116,-460.0,0.00020821,2]
[374303366,1753270250126,-460.0,0.00020821,2]
[374303368,1753270250135,-1243.64,0.00020821,2]
[374303370,1753270250144,-460.0,0.00020821,2]
[374303372,1753270250154,-4276.54,0.00020821,2]
[374303374,1753270250163,-1592.37,0.00020821,2]
[374303375,1753270250173,-460.0,0.00020821,2]
[374303377,1753270250183,-2748.55,0.00020821,2]
[374303379,1753270250192,-1000.0,0.00020824,2]
[374303381,1753270250202,-411.44928912,0.00020824,2]
[374303383,1753270250212,-1000.0,0.00020824,2]
[374303385,1753270250222,-1057.1355728,0.00020824,2]
[374303387,1753270250231,-501.11731388,0.00020824,2]
[374303389,1753270250241,-260.0,0.00020848,2]
[374303391,1753270250250,-250.12389181,0.000209,2]
[374303393,1753270250259,-679.97430302,0.00021,10]
[374303395,1753270250269,-59133.5156306,0.00021,2]
[374303397,1753270250278,-3959.67653516,0.00021,4]
[374303399,1753270250288,-3395.88933311,0.00021081,2]
[374303401,1753270250301,-460.0,0.00021095,2]
[374303403,1753270250311,-460.0,0.00021095,2]
[374303405,1753270250320,-460.0,0.00021095,2]
[374303407,1753270250330,-460.0,0.00021095,2]
[374303409,1753270250339,-460.0,0.00021095,2]
[374303410,1753270250348,-366.07535684,0.00021095,2]
[374303412,1753270250358,-460.0,0.00021095,2]
[374303414,1753270250367,-460.0,0.00021095,2]
[374303416,1753270250377,-460.0,0.00021095,2]
[374303418,1753270250386,-460.0,0.00021095,2]
[374303420,1753270250395,-460.0,0.00021095,2]
[374303422,1753270250405,-460.0,0.00021095,2]
[374303424,1753270250415,-1238.69,0.00021095,2]
[374303426,1753270250424,-573.91,0.00021095,2]
[374303428,1753270250434,-460.0,0.00021095,2]
[374303430,1753270250443,-672.03,0.00021095,2]
[374303431,1753270250452,-460.0,0.00021095,2]
[374303433,1753270250461,-599.95,0.00021095,2]
[374303435,1753270250470,-649.34,0.00021095,2]
[374303437,1753270250480,-460.0,0.00021095,2]
[374303439,1753270250489,-556.75,0.00021095,2]
[374303441,1753270250499,-460.0,0.00021095,2]
[374303443,1753270250508,-460.0,0.00021095,2]
[374303445,1753270250517,-460.0,0.00021095,2]
[374303447,1753270250527,-460.0,0.00021095,2]
[374303449,1753270250536,-460.0,0.00021095,2]
[374303451,1753270250547,-460.0,0.00021095,2]
[374303453,1753270250556,-460.0,0.00021095,2]
[374303455,1753270250566,-460.0,0.00021095,2]
[374303457,1753270250575,-460.0,0.00021095,2]
[374303458,1753270250584,-718.71,0.00021095,2]
[374303460,1753270250594,-470.47,0.00021095,2]
[374303462,1753270250606,-460.0,0.00021095,2]
[374303464,1753270250615,-460.0,0.00021095,2]
[374303466,1753270250624,-566.09,0.00021095,2]
[374303468,1753270250633,-7017.22,0.00021095,2]
[374303470,1753270250642,-460.0,0.00021095,2]
[374303472,1753270250652,-837.35,0.00021095,2]
[374303473,1753270250661,-1975.6,0.00021095,2]
[374303475,1753270250670,-497.72,0.00021095,2]
[374303477,1753270250679,-175.42131808,0.00021095,2]
[374303479,1753270250688,-460.0,0.00021095,2]
[374303481,1753270250698,-460.0,0.00021095,2]
[374303483,1753270250708,-460.0,0.00021095,2]
[374303485,1753270250717,-460.0,0.00021095,2]
[374303487,1753270250726,-636.41,0.00021095,2]
[374303489,1753270250735,-3910.58,0.00021095,2]
[374303491,1753270250745,-460.0,0.00021095,2]
[374303493,1753270250755,-761.41,0.00021095,2]
[374303495,1753270250764,-593.02,0.00021095,2]
[374303496,1753270250773,-460.0,0.00021095,2]
[374303498,1753270250784,-870.07,0.00021095,2]
[374303500,1753270250799,-2426.86,0.00021095,2]
[374303502,1753270250810,-460.0,0.00021095,2]
[374303504,1753270250820,-460.0,0.00021095,2]
[374303506,1753270250830,-2897.99,0.00021095,2]
[374303508,1753270250841,-1862.37,0.00021095,2]
[374303510,1753270250854,-3318.78,0.00021095,2]
[374303512,1753270250864,-460.0,0.00021095,2]
[374303514,1753270250874,-563.99,0.00021095,2]
[374303516,1753270250884,-460.0,0.00021095,2]
[374303518,1753270250894,-591.43,0.00021095,2]
[374303520,1753270250903,-13852.46,0.00021095,2]
[374303522,1753270250913,-3238.95,0.00021095,2]
[374303524,1753270250924,-514.65,0.00021095,2]
[374303526,1753270250934,-460.0,0.00021095,2]
[374303528,1753270250943,-1738.97,0.00021095,2]
[374303530,1753270250952,-460.0,0.00021095,2]
[374303532,1753270250963,-597.34,0.00021095,2]
[374303534,1753270250972,-460.0,0.00021095,2]
[374303535,1753270250982,-460.0,0.00021095,2]
[374303537,1753270250991,-1270.47,0.00021095,2]
[374303539,1753270251000,-538.77,0.00021095,2]
[374303541,1753270251010,-460.0,0.00021095,2]
[374303543,1753270251019,-460.0,0.00021095,2]
[374303545,1753270251028,-460.0,0.00021095,2]
[374303547,1753270251037,-1243.64,0.00021095,2]
[374303548,1753270251047,-460.0,0.00021095,2]
[374303550,1753270251056,-4276.54,0.00021095,2]
[374303551,1753270251066,-1592.37,0.00021095,2]
[374303552,1753270251075,-460.0,0.00021095,2]
[374303553,1753270251085,-2748.55,0.00021095,2]
[374303554,1753270251095,-1000.0,0.00021096,2]
[374303555,1753270251104,-981.24919533,0.00021109,2]
[374303556,1753270251114,-3395.88933311,0.00021115,2]
[374303557,1753270251124,-1000.0,0.00021116,2]
[374303558,1753270251135,-250.0,0.000212,2]
[374303559,1753270251144,-900.0,0.00021264,2]
[374303560,1753270251153,-2000.0,0.00021277,2]
[374303561,1753270251163,-2000.0,0.00021277,2]
[374303562,1753270251172,-288.31,0.00021293,2]